[Event "Titled Tuesday Blitz June 13 Late 2023"]
[White "liwadas82"]
[Black "DampFalcon"]
[WhiteElo "2419"]
[BlackElo "2201"]
[Result "1-0"]
[Round "10"]
[TimeControl "180+2"]
[Date "2023.06.13"]
[WhiteClock "0:00:09"]
[BlackClock "0:00:18"]
[Board "94"]

1. e4 {[%clk 0:03:00]}  c5 {[%clk 0:02:58]} 2. Nf3 {[%clk 0:03:01]}  Nc6 {[%clk 0:02:56]} 3. d4 {[%clk 0:03:01]}  cxd4 {[%clk 0:02:57]} 4. Nxd4 {[%clk 0:03:01]}  g6 {[%clk 0:02:57]} 5. g3 {[%clk 0:02:57]}  Bg7 {[%clk 0:02:54]} 6. Ne2 {[%clk 0:02:58]}  Nf6 {[%clk 0:02:54]} 7. Bg2 {[%clk 0:02:57]}  d6 {[%clk 0:02:54]} 8. Nbc3 {[%clk 0:02:55]}  O-O {[%clk 0:02:54]} 9. O-O {[%clk 0:02:54]}  Qa5 {[%clk 0:02:54]} 10. h3 {[%clk 0:02:51]}  Be6 {[%clk 0:02:54]} 11. Be3 {[%clk 0:02:48]}  Ne5 {[%clk 0:02:51]} 12. b3 {[%clk 0:02:48]}  Rac8 {[%clk 0:02:49]} 13. Nd5 {[%clk 0:02:46]}  Nxd5 {[%clk 0:02:34]} 14. exd5 {[%clk 0:02:47]}  Bf5 {[%clk 0:02:34]} 15. Nd4 {[%clk 0:02:33]}  Qc3 {[%clk 0:01:53]} 16. Rc1 {[%clk 0:02:19]}  Bd7 {[%clk 0:01:47]} 17. Re1 {[%clk 0:02:04]}  Be8 {[%clk 0:01:38]} 18. f4 {[%clk 0:01:55]}  Nd7 {[%clk 0:01:38]} 19. Nb5 {[%clk 0:01:45]}  Qa5 {[%clk 0:01:34]} 20. c4 {[%clk 0:01:29]}  a6 {[%clk 0:01:33]} 21. Nd4 {[%clk 0:01:26]}  Nc5 {[%clk 0:01:29]} 22. a4 {[%clk 0:01:23]}  b5 {[%clk 0:01:18]} 23. axb5 {[%clk 0:01:15]}  axb5 {[%clk 0:01:19]} 24. Nc6 {[%clk 0:01:02]}  Bxc6 {[%clk 0:01:19]} 25. dxc6 {[%clk 0:01:03]}  bxc4 {[%clk 0:01:19]} 26. Rxc4 {[%clk 0:01:00]}  Nd3 {[%clk 0:01:10]} 27. Re2 {[%clk 0:00:47]}  Nb2 {[%clk 0:01:08]} 28. Rxb2 {[%clk 0:00:34]}  Bxb2 {[%clk 0:01:09]} 29. Kh2 {[%clk 0:00:35]}  Bf6 {[%clk 0:00:57]} 30. b4 {[%clk 0:00:30]}  Qb5 {[%clk 0:00:55]} 31. Qd5 {[%clk 0:00:20]}  Qxd5 {[%clk 0:00:53]} 32. Bxd5 {[%clk 0:00:21]}  e6 {[%clk 0:00:53]} 33. Bf3 {[%clk 0:00:20]}  d5 {[%clk 0:00:54]} 34. Rc2 {[%clk 0:00:19]}  d4 {[%clk 0:00:39]} 35. Bf2 {[%clk 0:00:16]}  d3 {[%clk 0:00:39]} 36. Rd2 {[%clk 0:00:14]}  Rfd8 {[%clk 0:00:39]} 37. b5 {[%clk 0:00:13]}  Bc3 {[%clk 0:00:39]} 38. Rd1 {[%clk 0:00:13]}  Ba5 {[%clk 0:00:19]} 39. b6 {[%clk 0:00:12]}  Bxb6 {[%clk 0:00:15]} 40. Bxb6 {[%clk 0:00:13]}  Rd6 {[%clk 0:00:14]} 41. Be3 {[%clk 0:00:11]}  d2 {[%clk 0:00:07]} 42. Rxd2 {[%clk 0:00:11]}  Rdxc6 {[%clk 0:00:05]} 43. Bxc6 {[%clk 0:00:10]}  Rxc6 {[%clk 0:00:06]} 44. Kg2 {[%clk 0:00:10]}  Kg7 {[%clk 0:00:05]} 45. Kf3 {[%clk 0:00:09]}  h6 {[%clk 0:00:02]} 46. g4 {[%clk 0:00:09]}  Kf8 {[%clk 0:00:03]} 47. Bd4 {[%clk 0:00:09]}  Ke7 {[%clk 0:00:03]} 48. Ra2 {[%clk 0:00:07]}  Rd6 {[%clk 0:00:03]} 49. Ra7+ {[%clk 0:00:07]}  Ke8 {[%clk 0:00:03]} 50. Be5 {[%clk 0:00:06]}  Rc6 {[%clk 0:00:03]} 51. Ra8+ {[%clk 0:00:03]}  Kd7 {[%clk 0:00:03]} 52. Rh8 {[%clk 0:00:03]}  Ra6 {[%clk 0:00:02]} 53. Rxh6 {[%clk 0:00:03]}  Ra3+ {[%clk 0:00:02]} 54. Kg2 {[%clk 0:00:03]}  Ra8 {[%clk 0:00:01]} 55. h4 {[%clk 0:00:03]}  Ke7 {[%clk 0:00:02]} 56. Rh8 {[%clk 0:00:03]}  Rxh8 {[%clk 0:00:01]} 57. Bxh8 {[%clk 0:00:03]}  f6 {[%clk 0:00:02]} 58. g5 {[%clk 0:00:03]}  f5 {[%clk 0:00:03]} 59. Bf6+ {[%clk 0:00:02]}  Kd6 {[%clk 0:00:03]} 60. Kf3 {[%clk 0:00:03]}  Kd5 {[%clk 0:00:04]} 61. Ke3 {[%clk 0:00:04]}  Kc4 {[%clk 0:00:04]} 62. Be5 {[%clk 0:00:04]}  Kd5 {[%clk 0:00:04]} 63. Kd3 {[%clk 0:00:04]}  Kc6 {[%clk 0:00:04]} 64. Kc4 {[%clk 0:00:05]}  Kd7 {[%clk 0:00:05]} 65. Kc5 {[%clk 0:00:05]}  Ke8 {[%clk 0:00:06]} 66. Kc6 {[%clk 0:00:05]}  Kf8 {[%clk 0:00:07]} 67. Kd6 {[%clk 0:00:06]}  Kf7 {[%clk 0:00:08]} 68. Kd7 {[%clk 0:00:06]}  Kg8 {[%clk 0:00:08]} 69. Kxe6 {[%clk 0:00:07]}  Kh7 {[%clk 0:00:09]} 70. Kf6 {[%clk 0:00:07]}  Kg8 {[%clk 0:00:10]} 71. Kxg6 {[%clk 0:00:07]}  Kf8 {[%clk 0:00:10]} 72. Kxf5 {[%clk 0:00:07]}  Kg8 {[%clk 0:00:11]} 73. h5 {[%clk 0:00:08]}  Kh7 {[%clk 0:00:12]} 74. Kg4 {[%clk 0:00:08]}  Kg8 {[%clk 0:00:12]} 75. f5 {[%clk 0:00:09]}  Kh7 {[%clk 0:00:13]} 76. h6 {[%clk 0:00:08]}  Kg8 {[%clk 0:00:14]} 77. Kh5 {[%clk 0:00:09]}  Kh7 {[%clk 0:00:15]} 78. g6+ {[%clk 0:00:09]}  Kg8 {[%clk 0:00:16]} 79. h7+ {[%clk 0:00:09]}  Kf8 {[%clk 0:00:17]} 80. h8=Q+ {[%clk 0:00:10]}  Ke7 {[%clk 0:00:18]} 81. Qf6+ {[%clk 0:00:09]}  Kd7 {[%clk 0:00:18]} 82. Qe6+ {[%clk 0:00:09]}  Kd8 {[%clk 0:00:18]} 83. Qf7 {[%clk 0:00:09]}  Kc8 {[%clk 0:00:18]} 84. Qc7# {[%clk 0:00:09]} 1-0


[Site "https://www.chess.com"]

[Event "Titled Tuesday Blitz June 13 Late 2023"]
[White "Slavin, Alexey"]
[Black "Almedina Ortiz, Edgardo J."]
[WhiteFideId "24104388"]
[BlackFideId "3100197"]
[WhiteElo "2264"]
[BlackElo "2217"]
[Result "1-0"]
[Round "10"]
[TimeControl "180+2"]
[Date "2023.06.13"]
[WhiteClock "0:00:11"]
[BlackClock "0:00:00"]
[Board "97"]

1. e4 {[%clk 0:02:57]}  c5 {[%clk 0:02:58]} 2. g3 {[%clk 0:02:57]}  Nc6 {[%clk 0:02:58]} 3. Bg2 {[%clk 0:02:57]}  g6 {[%clk 0:02:59]} 4. Ne2 {[%clk 0:02:58]}  Bg7 {[%clk 0:02:59]} 5. O-O {[%clk 0:02:59]}  e6 {[%clk 0:02:56]} 6. Nbc3 {[%clk 0:02:59]}  Nge7 {[%clk 0:02:56]} 7. a3 {[%clk 0:02:59]}  O-O {[%clk 0:02:55]} 8. Rb1 {[%clk 0:02:59]}  d6 {[%clk 0:02:34]} 9. b4 {[%clk 0:02:58]}  Qd7 {[%clk 0:02:34]} 10. d3 {[%clk 0:02:55]}  Rb8 {[%clk 0:02:29]} 11. Bd2 {[%clk 0:02:48]}  b6 {[%clk 0:02:29]} 12. Qc1 {[%clk 0:02:47]}  Re8 {[%clk 0:02:28]} 13. Bh6 {[%clk 0:02:47]}  Bh8 {[%clk 0:02:26]} 14. f4 {[%clk 0:02:38]}  f5 {[%clk 0:02:13]} 15. h3 {[%clk 0:02:34]}  Bb7 {[%clk 0:01:13]} 16. Kh2 {[%clk 0:02:33]}  Nd4 {[%clk 0:01:07]} 17. bxc5 {[%clk 0:02:08]}  dxc5 {[%clk 0:01:07]} 18. Nxd4 {[%clk 0:01:25]}  cxd4 {[%clk 0:01:01]} 19. Ne2 {[%clk 0:01:14]}  Rbc8 {[%clk 0:00:59]} 20. Qd2 {[%clk 0:01:01]}  Rc7 {[%clk 0:00:27]} 21. Rfc1 {[%clk 0:00:45]}  Rec8 {[%clk 0:00:26]} 22. Bg5 {[%clk 0:00:44]}  Nc6 {[%clk 0:00:23]} 23. e5 {[%clk 0:00:39]}  Na5 {[%clk 0:00:21]} 24. Rb4 {[%clk 0:00:35]}  Bxg2 {[%clk 0:00:20]} 25. Kxg2 {[%clk 0:00:36]}  Nc6 {[%clk 0:00:20]} 26. Rc4 {[%clk 0:00:35]}  b5 {[%clk 0:00:19]} 27. Rc5 {[%clk 0:00:30]}  Nb8 {[%clk 0:00:15]} 28. Rxc7 {[%clk 0:00:28]}  Rxc7 {[%clk 0:00:15]} 29. Qb4 {[%clk 0:00:27]}  Qd5+ {[%clk 0:00:13]} 30. Kf2 {[%clk 0:00:26]}  Nc6 {[%clk 0:00:13]} 31. Qb3 {[%clk 0:00:23]}  Rd7 {[%clk 0:00:09]} 32. Rb1 {[%clk 0:00:20]}  a6 {[%clk 0:00:09]} 33. Ng1 {[%clk 0:00:15]}  Bg7 {[%clk 0:00:09]} 34. Nf3 {[%clk 0:00:14]}  Bf8 {[%clk 0:00:09]} 35. Bf6 {[%clk 0:00:13]}  Bc5 {[%clk 0:00:07]} 36. h4 {[%clk 0:00:12]}  Qxb3 {[%clk 0:00:06]} 37. cxb3 {[%clk 0:00:11]}  h6 {[%clk 0:00:06]} 38. b4 {[%clk 0:00:10]}  Bb6 {[%clk 0:00:06]} 39. Rc1 {[%clk 0:00:11]}  Rc7 {[%clk 0:00:06]} 40. h5 {[%clk 0:00:10]}  gxh5 {[%clk 0:00:03]} 41. Nh4 {[%clk 0:00:10]}  Nxb4 {[%clk 0:00:02]} 42. Rxc7 {[%clk 0:00:10]}  Nxd3+ {[%clk 0:00:02]} 43. Ke2 {[%clk 0:00:10]}  Nxf4+ {[%clk 0:00:02]} 44. gxf4 {[%clk 0:00:10]}  Bxc7 {[%clk 0:00:03]} 45. Kd3 {[%clk 0:00:10]}  Bb6 {[%clk 0:00:02]} 46. Nf3 {[%clk 0:00:10]}  Bc5 {[%clk 0:00:02]} 47. Nxd4 {[%clk 0:00:11]}  Bxa3 {[%clk 0:00:00]} 48. Nxe6 {[%clk 0:00:11]} 1-0


[Site "https://www.chess.com"]

[Event "Titled Tuesday Blitz June 13 Late 2023"]
[White "Castella Garcia, Fausto"]
[Black "Torres Dominguez, David"]
[WhiteFideId "3501922"]
[BlackFideId "2220857"]
[WhiteElo "2245"]
[BlackElo "1999"]
[Result "0-1"]
[Round "10"]
[TimeControl "180+2"]
[Date "2023.06.13"]
[WhiteClock "0:01:07"]
[BlackClock "0:01:13"]
[Board "98"]

1. e4 {[%clk 0:03:00]}  Nc6 {[%clk 0:02:39]} 2. Nf3 {[%clk 0:02:55]}  e5 {[%clk 0:02:39]} 3. Bb5 {[%clk 0:02:54]}  Nge7 {[%clk 0:02:38]} 4. Nc3 {[%clk 0:02:44]}  g6 {[%clk 0:02:38]} 5. d4 {[%clk 0:02:40]}  exd4 {[%clk 0:02:38]} 6. Nd5 {[%clk 0:02:41]}  Bg7 {[%clk 0:02:37]} 7. Bg5 {[%clk 0:02:41]}  h6 {[%clk 0:02:37]} 8. Bf6 {[%clk 0:02:42]}  Bxf6 {[%clk 0:02:36]} 9. Nxf6+ {[%clk 0:02:43]}  Kf8 {[%clk 0:02:36]} 10. Qd2 {[%clk 0:02:43]}  d5 {[%clk 0:02:34]} 11. Nxd4 {[%clk 0:02:13]}  dxe4 {[%clk 0:02:27]} 12. Bxc6 {[%clk 0:02:11]}  Nxc6 {[%clk 0:02:19]} 13. Nxc6 {[%clk 0:02:10]}  Qxf6 {[%clk 0:02:18]} 14. Nd4 {[%clk 0:01:55]}  Bg4 {[%clk 0:02:09]} 15. h3 {[%clk 0:01:50]}  Rd8 {[%clk 0:02:03]} 16. Qb4+ {[%clk 0:01:48]}  Kg7 {[%clk 0:01:55]} 17. c3 {[%clk 0:01:45]}  Bc8 {[%clk 0:01:49]} 18. O-O-O {[%clk 0:01:44]}  Qg5+ {[%clk 0:01:43]} 19. Kb1 {[%clk 0:01:43]}  c5 {[%clk 0:01:43]} 20. h4 {[%clk 0:01:32]}  Qe5 {[%clk 0:01:38]} 21. f4 {[%clk 0:01:30]}  exf3 {[%clk 0:01:30]} 22. Qa5 {[%clk 0:01:17]}  b6 {[%clk 0:01:20]} 23. Qxa7 {[%clk 0:01:07]}  cxd4 {[%clk 0:01:13]} 0-1


[Site "https://www.chess.com"]

[Event "Titled Tuesday Blitz June 13 Late 2023"]
[White "Korpics, Zsolt"]
[Black "Dias, Joao Batista"]
[WhiteFideId "705241"]
[BlackFideId "2108240"]
[WhiteElo "2338"]
[BlackElo "1907"]
[Result "1-0"]
[Round "10"]
[TimeControl "180+2"]
[Date "2023.06.13"]
[WhiteClock "0:02:37"]
[BlackClock "0:02:39"]
[Board "99"]

1. e4 {[%clk 0:03:00]}  e6 {[%clk 0:03:00]} 2. d4 {[%clk 0:03:00]}  d5 {[%clk 0:03:00]} 3. Nc3 {[%clk 0:03:01]}  dxe4 {[%clk 0:02:59]} 4. Nxe4 {[%clk 0:03:00]}  Nf6 {[%clk 0:03:00]} 5. Nxf6+ {[%clk 0:02:57]}  Qxf6 {[%clk 0:02:59]} 6. Nf3 {[%clk 0:02:57]}  h6 {[%clk 0:03:00]} 7. Bd3 {[%clk 0:02:55]}  Bd6 {[%clk 0:03:00]} 8. O-O {[%clk 0:02:50]}  O-O {[%clk 0:03:00]} 9. Re1 {[%clk 0:02:48]}  Nd7 {[%clk 0:02:58]} 10. Qe2 {[%clk 0:02:44]}  b6 {[%clk 0:02:54]} 11. Qe4 {[%clk 0:02:43]}  g6 {[%clk 0:02:47]} 12. Qxa8 {[%clk 0:02:41]}  Ba6 {[%clk 0:02:46]} 13. Qe4 {[%clk 0:02:40]}  Bxd3 {[%clk 0:02:45]} 14. Qxd3 {[%clk 0:02:39]}  Rd8 {[%clk 0:02:43]} 15. Bxh6 {[%clk 0:02:37]}  c5 {[%clk 0:02:39]} 16. Bg5 {[%clk 0:02:37]} 1-0


[Site "https://www.chess.com"]

[Event "Titled Tuesday Blitz June 13 Late 2023"]
[White "Francisco_Ferrari"]
[Black "Lalanne, Pablo"]
[BlackFideId "112151"]
[WhiteElo "2321"]
[BlackElo "2120"]
[Result "1/2-1/2"]
[Round "10"]
[TimeControl "180+2"]
[Date "2023.06.13"]
[WhiteClock "0:00:03"]
[BlackClock "0:01:04"]
[Board "101"]

1. c4 {[%clk 0:03:00]}  Nf6 {[%clk 0:02:59]} 2. Nc3 {[%clk 0:03:00]}  e6 {[%clk 0:02:59]} 3. e4 {[%clk 0:03:00]}  d5 {[%clk 0:02:59]} 4. e5 {[%clk 0:02:59]}  d4 {[%clk 0:03:00]} 5. exf6 {[%clk 0:02:59]}  dxc3 {[%clk 0:03:00]} 6. bxc3 {[%clk 0:02:59]}  Qxf6 {[%clk 0:03:00]} 7. Nf3 {[%clk 0:02:59]}  c5 {[%clk 0:02:56]} 8. d4 {[%clk 0:02:54]}  cxd4 {[%clk 0:02:55]} 9. cxd4 {[%clk 0:02:52]}  Bb4+ {[%clk 0:02:55]} 10. Bd2 {[%clk 0:02:51]}  Bxd2+ {[%clk 0:02:55]} 11. Qxd2 {[%clk 0:02:52]}  O-O {[%clk 0:02:50]} 12. Bd3 {[%clk 0:02:46]}  Nc6 {[%clk 0:02:49]} 13. O-O {[%clk 0:02:46]}  Rd8 {[%clk 0:02:49]} 14. Rad1 {[%clk 0:02:20]}  g6 {[%clk 0:02:43]} 15. Be4 {[%clk 0:02:12]}  Bd7 {[%clk 0:02:29]} 16. Rfe1 {[%clk 0:02:02]}  Rac8 {[%clk 0:02:19]} 17. Qe3 {[%clk 0:01:28]}  Na5 {[%clk 0:02:15]} 18. c5 {[%clk 0:01:18]}  Bc6 {[%clk 0:02:12]} 19. Ne5 {[%clk 0:01:01]}  Bxe4 {[%clk 0:01:59]} 20. Qxe4 {[%clk 0:01:02]}  Nc6 {[%clk 0:01:59]} 21. Nxc6 {[%clk 0:00:40]}  Rxc6 {[%clk 0:01:51]} 22. h3 {[%clk 0:00:34]}  Kg7 {[%clk 0:01:49]} 23. Re3 {[%clk 0:00:28]}  Rd5 {[%clk 0:01:48]} 24. Rf3 {[%clk 0:00:27]}  Rf5 {[%clk 0:01:48]} 25. Rxf5 {[%clk 0:00:26]}  Qxf5 {[%clk 0:01:44]} 26. Qxf5 {[%clk 0:00:26]}  gxf5 {[%clk 0:01:44]} 27. Kf1 {[%clk 0:00:22]}  Kf6 {[%clk 0:01:44]} 28. f4 {[%clk 0:00:20]}  b6 {[%clk 0:01:43]} 29. cxb6 {[%clk 0:00:19]}  Rxb6 {[%clk 0:01:43]} 30. d5 {[%clk 0:00:19]}  exd5 {[%clk 0:01:41]} 31. Rxd5 {[%clk 0:00:20]}  Rb1+ {[%clk 0:01:40]} 32. Kf2 {[%clk 0:00:20]}  Rb2+ {[%clk 0:01:40]} 33. Kg3 {[%clk 0:00:20]}  Rxa2 {[%clk 0:01:41]} 34. Rd6+ {[%clk 0:00:20]}  Kg7 {[%clk 0:01:38]} 35. Rd5 {[%clk 0:00:20]}  Kg6 {[%clk 0:01:38]} 36. Rd6+ {[%clk 0:00:20]}  f6 {[%clk 0:01:38]} 37. Rd7 {[%clk 0:00:21]}  h5 {[%clk 0:01:36]} 38. Rb7 {[%clk 0:00:19]}  a5 {[%clk 0:01:33]} 39. Ra7 {[%clk 0:00:19]}  a4 {[%clk 0:01:33]} 40. Kh2 {[%clk 0:00:19]}  h4 {[%clk 0:01:33]} 41. Kh1 {[%clk 0:00:19]}  a3 {[%clk 0:01:32]} 42. Kh2 {[%clk 0:00:20]}  Rf2 {[%clk 0:01:30]} 43. Rxa3 {[%clk 0:00:19]}  Rxf4 {[%clk 0:01:31]} 44. Ra8 {[%clk 0:00:18]}  Rb4 {[%clk 0:01:29]} 45. Rg8+ {[%clk 0:00:17]}  Kh6 {[%clk 0:01:27]} 46. Rh8+ {[%clk 0:00:17]}  Kg5 {[%clk 0:01:27]} 47. Rg8+ {[%clk 0:00:16]}  Kf4 {[%clk 0:01:27]} 48. Rg6 {[%clk 0:00:15]}  Ke5 {[%clk 0:01:26]} 49. Kg1 {[%clk 0:00:16]}  Rb2 {[%clk 0:01:25]} 50. Rh6 {[%clk 0:00:16]}  Rb4 {[%clk 0:01:24]} 51. Rg6 {[%clk 0:00:16]}  Rf4 {[%clk 0:01:21]} 52. Kh2 {[%clk 0:00:14]}  Rf1 {[%clk 0:01:17]} 53. Rg8 {[%clk 0:00:14]}  f4 {[%clk 0:01:16]} 54. Rg4 {[%clk 0:00:14]}  Rf2 {[%clk 0:01:15]} 55. Kg1 {[%clk 0:00:13]}  Ra2 {[%clk 0:01:14]} 56. Rxh4 {[%clk 0:00:14]}  f5 {[%clk 0:01:15]} 57. Rh8 {[%clk 0:00:13]}  f3 {[%clk 0:01:13]} 58. gxf3 {[%clk 0:00:09]}  Kf4 {[%clk 0:01:13]} 59. Rf8 {[%clk 0:00:09]}  Kg3 {[%clk 0:01:13]} 60. Rg8+ {[%clk 0:00:09]}  Kxf3 {[%clk 0:01:13]} 61. h4 {[%clk 0:00:08]}  f4 {[%clk 0:01:11]} 62. h5 {[%clk 0:00:08]}  Ra5 {[%clk 0:01:11]} 63. h6 {[%clk 0:00:08]}  Rh5 {[%clk 0:01:10]} 64. Rg6 {[%clk 0:00:06]}  Ke2 {[%clk 0:01:08]} 65. Re6+ {[%clk 0:00:05]}  Kf3 {[%clk 0:01:09]} 66. Rg6 {[%clk 0:00:05]}  Ke4 {[%clk 0:01:08]} 67. Kf2 {[%clk 0:00:05]}  Rh2+ {[%clk 0:01:07]} 68. Kg1 {[%clk 0:00:05]}  Rh5 {[%clk 0:01:06]} 69. Kf2 {[%clk 0:00:06]}  Kf5 {[%clk 0:01:05]} 70. Ra6 {[%clk 0:00:03]}  Kg4 {[%clk 0:01:05]} 71. Rg6+ {[%clk 0:00:03]}  Kf5 {[%clk 0:01:04]} 72. Ra6 {[%clk 0:00:03]}  Ke4 {[%clk 0:01:04]} 73. Rg6 {[%clk 0:00:03]} 1/2-1/2


[Site "https://www.chess.com"]

[Event "Titled Tuesday Blitz June 13 Late 2023"]
[White "Rodriguez Santiago, Jaime"]
[Black "Fernandez, Maria Florencia"]
[WhiteFideId "3100898"]
[BlackFideId "116459"]
[WhiteElo "2025"]
[BlackElo "2074"]
[Result "0-1"]
[Round "10"]
[TimeControl "180+2"]
[Date "2023.06.13"]
[WhiteClock "0:00:20"]
[BlackClock "0:00:52"]
[Board "104"]

1. c4 {[%clk 0:03:00]}  e5 {[%clk 0:02:59]} 2. Nc3 {[%clk 0:02:59]}  Nc6 {[%clk 0:02:56]} 3. g3 {[%clk 0:02:59]}  g6 {[%clk 0:02:56]} 4. Bg2 {[%clk 0:02:59]}  Bg7 {[%clk 0:02:57]} 5. e4 {[%clk 0:02:59]}  Nge7 {[%clk 0:02:56]} 6. Nge2 {[%clk 0:03:00]}  O-O {[%clk 0:02:56]} 7. O-O {[%clk 0:02:59]}  d6 {[%clk 0:02:56]} 8. d3 {[%clk 0:02:56]}  f5 {[%clk 0:02:56]} 9. f4 {[%clk 0:02:55]}  Nd4 {[%clk 0:02:49]} 10. Nxd4 {[%clk 0:02:50]}  exd4 {[%clk 0:02:50]} 11. Ne2 {[%clk 0:02:50]}  Nc6 {[%clk 0:02:49]} 12. Rb1 {[%clk 0:02:40]}  Be6 {[%clk 0:02:44]} 13. b4 {[%clk 0:02:38]}  Qd7 {[%clk 0:02:42]} 14. b5 {[%clk 0:02:35]}  Nd8 {[%clk 0:02:39]} 15. Bb2 {[%clk 0:02:34]}  c5 {[%clk 0:02:34]} 16. bxc6 {[%clk 0:02:30]}  Nxc6 {[%clk 0:02:33]} 17. Ba3 {[%clk 0:02:14]}  Rfe8 {[%clk 0:02:27]} 18. Qa4 {[%clk 0:01:29]}  Re7 {[%clk 0:01:45]} 19. exf5 {[%clk 0:01:21]}  Bxf5 {[%clk 0:01:43]} 20. Nc1 {[%clk 0:01:18]}  Rf8 {[%clk 0:01:30]} 21. Rf2 {[%clk 0:01:09]}  Re1+ {[%clk 0:01:20]} 22. Rf1 {[%clk 0:01:01]}  Qe7 {[%clk 0:01:06]} 23. Nb3 {[%clk 0:00:36]}  Qe3+ {[%clk 0:01:03]} 24. Kh1 {[%clk 0:00:36]}  Rxb1 {[%clk 0:00:53]} 25. Rxb1 {[%clk 0:00:35]}  Bxd3 {[%clk 0:00:53]} 26. Rd1 {[%clk 0:00:20]}  Be4 {[%clk 0:00:52]} 0-1


[Site "https://www.chess.com"]

[Event "Titled Tuesday Blitz June 13 Late 2023"]
[White "Maluco_do_Natal_00"]
[Black "Sairam, Pranav"]
[BlackFideId "30951330"]
[WhiteElo "2105"]
[BlackElo "1918"]
[Result "1-0"]
[Round "10"]
[TimeControl "180+2"]
[Date "2023.06.13"]
[WhiteClock "0:00:03"]
[BlackClock "0:00:25"]
[Board "108"]

1. e4 {[%clk 0:02:59]}  e5 {[%clk 0:03:00]} 2. Nf3 {[%clk 0:02:58]}  Nf6 {[%clk 0:03:00]} 3. Nxe5 {[%clk 0:02:57]}  d6 {[%clk 0:03:00]} 4. Nf3 {[%clk 0:02:57]}  Nxe4 {[%clk 0:03:00]} 5. Nc3 {[%clk 0:02:58]}  Nxc3 {[%clk 0:03:00]} 6. dxc3 {[%clk 0:02:59]}  Be7 {[%clk 0:03:00]} 7. Bd3 {[%clk 0:02:59]}  O-O {[%clk 0:03:00]} 8. Be3 {[%clk 0:02:59]}  Nd7 {[%clk 0:02:57]} 9. Qd2 {[%clk 0:02:59]}  c6 {[%clk 0:02:55]} 10. O-O-O {[%clk 0:02:57]}  d5 {[%clk 0:02:55]} 11. h4 {[%clk 0:02:45]}  Nc5 {[%clk 0:02:55]} 12. Bxc5 {[%clk 0:02:29]}  Bxc5 {[%clk 0:02:55]} 13. Ng5 {[%clk 0:02:29]}  h6 {[%clk 0:02:53]} 14. Kb1 {[%clk 0:01:50]}  a5 {[%clk 0:02:31]} 15. Nf3 {[%clk 0:01:22]}  Qf6 {[%clk 0:02:13]} 16. Nd4 {[%clk 0:01:15]}  Bd6 {[%clk 0:01:55]} 17. g3 {[%clk 0:00:55]}  a4 {[%clk 0:01:47]} 18. f4 {[%clk 0:00:48]}  a3 {[%clk 0:01:43]} 19. b3 {[%clk 0:00:48]}  Bc7 {[%clk 0:01:18]} 20. Rde1 {[%clk 0:00:32]}  c5 {[%clk 0:01:13]} 21. Nf3 {[%clk 0:00:23]}  Ba5 {[%clk 0:01:11]} 22. Ne5 {[%clk 0:00:22]}  d4 {[%clk 0:01:09]} 23. Qg2 {[%clk 0:00:06]}  Bxc3 {[%clk 0:01:06]} 24. Qe4 {[%clk 0:00:06]}  g6 {[%clk 0:00:54]} 25. g4 {[%clk 0:00:06]}  Bxe1 {[%clk 0:00:52]} 26. Rxe1 {[%clk 0:00:05]}  Qxh4 {[%clk 0:00:50]} 27. Nxg6 {[%clk 0:00:03]}  Qf6 {[%clk 0:00:25]} 28. Ne7+ {[%clk 0:00:03]} 1-0


[Site "https://www.chess.com"]

[Event "Titled Tuesday Blitz June 13 Late 2023"]
[White "Fajdetic, Hrvoje"]
[Black "zano2023"]
[WhiteFideId "14501945"]
[WhiteElo "2185"]
[BlackElo "2112"]
[Result "1-0"]
[Round "10"]
[TimeControl "180+2"]
[Date "2023.06.13"]
[WhiteClock "0:00:07"]
[BlackClock "0:00:13"]
[Board "109"]

1. f4 {[%clk 0:02:56]}  e5 {[%clk 0:02:58]} 2. fxe5 {[%clk 0:02:56]}  d6 {[%clk 0:02:59]} 3. exd6 {[%clk 0:02:54]}  Bxd6 {[%clk 0:03:00]} 4. Nf3 {[%clk 0:02:55]}  g5 {[%clk 0:02:59]} 5. g3 {[%clk 0:02:55]}  g4 {[%clk 0:02:59]} 6. Nh4 {[%clk 0:02:55]}  Ne7 {[%clk 0:03:00]} 7. d4 {[%clk 0:02:53]}  Ng6 {[%clk 0:02:59]} 8. Ng2 {[%clk 0:02:52]}  h5 {[%clk 0:02:58]} 9. Be3 {[%clk 0:01:54]}  h4 {[%clk 0:02:58]} 10. gxh4 {[%clk 0:01:54]}  Nxh4 {[%clk 0:02:57]} 11. Qd3 {[%clk 0:01:30]}  Bf5 {[%clk 0:02:33]} 12. Qb5+ {[%clk 0:01:20]}  Nc6 {[%clk 0:02:19]} 13. Nc3 {[%clk 0:01:07]}  Qd7 {[%clk 0:02:10]} 14. O-O-O {[%clk 0:01:00]}  O-O-O {[%clk 0:02:07]} 15. Nxh4 {[%clk 0:00:30]}  Rxh4 {[%clk 0:02:03]} 16. Bg5 {[%clk 0:00:30]}  a6 {[%clk 0:02:01]} 17. Qa4 {[%clk 0:00:18]}  Rxh2 {[%clk 0:01:54]} 18. Rxh2 {[%clk 0:00:18]}  Bxh2 {[%clk 0:01:53]} 19. Bxd8 {[%clk 0:00:18]}  Bf4+ {[%clk 0:01:52]} 20. Kb1 {[%clk 0:00:18]}  Qxd8 {[%clk 0:01:49]} 21. d5 {[%clk 0:00:18]}  Qg5 {[%clk 0:00:33]} 22. dxc6 {[%clk 0:00:16]}  bxc6 {[%clk 0:00:30]} 23. Qxc6 {[%clk 0:00:14]}  Kb8 {[%clk 0:00:24]} 24. e4 {[%clk 0:00:13]}  Bc8 {[%clk 0:00:22]} 25. Bxa6 {[%clk 0:00:11]}  Bxa6 {[%clk 0:00:21]} 26. Qxa6 {[%clk 0:00:12]}  Bd6 {[%clk 0:00:21]} 27. Nb5 {[%clk 0:00:11]}  Qc5 {[%clk 0:00:19]} 28. a4 {[%clk 0:00:08]}  g3 {[%clk 0:00:18]} 29. Rd5 {[%clk 0:00:08]}  g2 {[%clk 0:00:17]} 30. Rxc5 {[%clk 0:00:06]}  g1=Q+ {[%clk 0:00:16]} 31. Ka2 {[%clk 0:00:07]}  Qxc5 {[%clk 0:00:17]} 32. c3 {[%clk 0:00:07]}  Qb6 {[%clk 0:00:16]} 33. Qxb6+ {[%clk 0:00:07]}  cxb6 {[%clk 0:00:13]} 34. Nxd6 {[%clk 0:00:07]} 1-0


[Site "https://www.chess.com"]